bitfinex/quotes_ETHUSD_20260313
["timestamp","ask_amount","ask_price","bid_price","bid_amount"]
[1773425461042,3.99178505,2099.6,2099.0,0.0011]
[1773425461366,4.76274063,2099.7,2099.0,0.0011]
[1773425461367,3.99166,2099.9,2099.0,1.05069002]
[1773425461567,2.80108206,2099.8,2099.0,0.0011]
[1773425461867,2.80108206,2099.8,2099.0,1.3251]
[1773425462656,2.80108206,2099.8,2099.0,0.0011]
[1773425462879,2.80108206,2099.5,2098.8,0.0011]
[1773425463043,3.99189848,2099.4,2098.8,0.0011]
[1773425463554,2.80108206,2099.4,2098.8,0.0011]
[1773425463753,2.80108206,2099.7,2098.8,0.0011]
[1773425464741,2.80108206,2099.7,2098.8,1.08150283]
[1773425464946,1.42839264,2099.9,2098.8,1.08150283]
[1773425465173,4.2294747,2099.9,2098.9,2.2182167]
[1773425465373,3.03891667,2099.9,2099.0,1.0271166]
[1773425465879,2.80108206,2100.2,2099.3,1.0271166]
[1773425466170,2.80108206,2100.2,2099.4,1.0271166]
[1773425467659,2.80108206,2100.2,2099.5,1.1907597]
[1773425467856,2.80108206,2100.2,2099.5,2.5147597]
[1773425468065,2.80208206,2100.5,2099.5,3.52492125]
[1773425468262,2.80208206,2100.5,2099.6,8.99107]
[1773425468975,2.80208206,2100.5,2099.6,1.01016155]
[1773425469174,2.80108206,2100.4,2099.6,1.01016155]
[1773425469350,2.80108206,2100.4,2099.7,1.326]
[1773425469546,3.99138179,2100.4,2099.4,5.767528]
[1773425469751,3.99138179,2100.4,2099.5,1.326]
[1773425470078,2.80108206,2100.3,2099.5,1.326]
[1773425471478,0.001,2100.0,2099.5,1.326]
[1773425471855,0.001,2100.0,2099.6,1.19070299]
[1773425472054,1.19121967,2100.5,2099.6,2.18383382]
[1773425472254,3.99230173,2100.5,2099.6,2.18383382]
[1773425472655,2.80108206,2100.4,2099.6,2.18383382]
[1773425473080,2.80108206,2100.4,2099.6,1.19070299]
[1773425473252,2.80108206,2100.4,2099.7,1.329]
[1773425474083,2.80108206,2100.3,2099.8,1.19058957]
[1773425474683,2.80108206,2100.3,2099.5,1.1907597]
[1773425474890,2.80108206,2100.3,2098.6,0.065536]
[1773425474891,2.80108206,2100.3,2099.1,2.16544459]
[1773425475180,2.80108206,2100.3,2099.2,2.29820145]
[1773425475482,2.80108206,2100.3,2099.1,1.19095772]
[1773425475685,2.80108206,2100.0,2099.1,1.19095772]
[1773425476078,2.80108206,2099.8,2099.0,2.52209983]
[1773425476793,1.19050805,2100.0,2099.1,1.00955983]
[1773425477010,3.99159011,2100.0,2099.1,1.00955983]
[1773425477163,2.80108206,2100.0,2099.1,1.00955983]
[1773425477504,3.99156238,2100.0,2099.1,0.96192037]
[1773425478376,3.99156238,2100.0,2099.2,1.19092987]
[1773425479523,2.80108206,2099.9,2099.2,1.19092987]
[1773425479812,2.80108206,2100.3,2099.3,0.94308209]
[1773425480605,1.19036282,2100.2,2099.4,2.127616]
[1773425480811,3.99144488,2100.2,2099.4,2.127616]
[1773425481183,3.99144488,2100.2,2099.5,1.333]
[1773425481515,2.89223206,2100.1,2099.5,1.333]
[1773425482714,2.89223206,2100.1,2099.6,1.19070299]
[1773425482715,4.08266525,2100.1,2099.6,1.19070299]
[1773425482926,2.89223206,2100.0,2099.3,1.19087314]
[1773425483129,2.89223206,2100.0,2099.3,2.52387314]
[1773425483593,2.89223206,2100.0,2099.4,0.0011]
[1773425483798,0.001,2099.8,2099.4,0.0011]
[1773425484829,0.001,2099.8,2099.5,1.1907597]
[1773425485037,2.89223206,2100.2,2099.5,1.1907597]
[1773425485316,0.001,2100.5,2099.6,0.99462855]
[1773425485612,0.001,2100.5,2099.8,0.94700044]
[1773425485787,0.001,2100.5,2099.9,1.334]
[1773425487613,0.001,2100.5,2100.0,1.19047619]
[1773425488614,0.001,2100.5,2100.0,2.11991671]
[1773425488817,0.001,2101.2,2100.0,2.11991671]
[1773425488818,2.89223206,2101.1,2100.2,0.92844052]
[1773425489128,0.001,2101.2,2100.4,0.92844052]
[1773425489332,0.001,2101.2,2100.6,0.9222339]
[1773425489491,0.001,2101.2,2100.7,1.19007949]
[1773425489691,0.001,2101.2,2100.7,2.11231339]
[1773425490525,0.001,2101.2,2100.7,1.19007949]
[1773425491016,2.89323206,2101.2,2100.6,1.335]
[1773425491614,2.89323206,2101.2,2100.6,2.52513212]
[1773425491615,2.89223206,2101.0,2100.6,2.52513212]
[1773425492112,2.89223206,2101.0,2100.6,1.335]
[1773425492313,2.89223206,2101.0,2100.2,4.76130036]
[1773425492520,2.89223206,2101.0,2100.3,1.336]
[1773425493303,4.08303478,2101.2,2100.3,2.23324262]
[1773425493922,2.89223206,2101.1,2100.4,1.19024947]
[1773425495589,2.89223206,2101.1,2100.5,1.336]
[1773425496011,4.08214162,2101.0,2100.5,2.52614197]
[1773425496218,0.001,2100.9,2100.5,1.336]
[1773425496421,2.89323206,2100.9,2100.5,1.336]
[1773425496617,2.89323206,2100.9,2100.5,0.18274461]
[1773425498519,1.19002284,2100.8,2100.5,0.04059617]
[1773425498821,4.0822549,2100.8,2100.5,0.04059617]
[1773425499125,2.89223206,2100.7,2100.5,0.04059617]
[1773425499417,2.89223206,2100.7,2100.2,2.52734095]
[1773425500496,4.08231293,2100.7,2100.2,2.52734095]
[1773425500695,2.89223206,2100.7,2100.2,2.52734095]
[1773425501100,4.08231184,2100.7,2100.2,2.52734095]
[1773425501513,2.89223206,2100.7,2100.2,2.52734095]
[1773425502017,2.89223206,2100.8,2100.2,2.52734095]
[1773425502218,2.89223206,2100.8,2099.6,3.2281842]
[1773425502524,2.89223206,2100.8,2099.7,1.338]
[1773425502825,2.89223206,2100.6,2099.8,2.52858957]
[1773425503002,2.89223206,2100.6,2099.9,0.04762131]
[1773425503202,2.89223206,2100.6,2099.8,2.52858957]
[1773425503527,2.89223206,2100.6,2099.8,1.338]
[1773425504402,2.89223206,2100.6,2099.5,1.1907597]
[1773425504611,2.89223206,2100.6,2099.4,1.3391]
[1773425504612,2.89223206,2100.3,2099.4,1.3391]
[1773425504811,2.89223206,2100.3,2099.4,2.52991248]
[1773425505421,2.67678932,2100.2,2099.4,0.0011]
[1773425506317,2.67678932,2099.9,2099.1,0.0011]
[1773425506508,2.67678932,2099.6,2098.9,0.0011]
[1773425506715,2.67678932,2099.4,2098.9,0.0011]
[1773425508630,1.19087314,2099.3,2098.9,0.0011]
[1773425508832,1.19087314,2099.3,2099.1,0.0011]
[1773425509042,3.86764709,2099.4,2099.1,0.0011]
[1773425509333,2.67678932,2099.3,2098.9,0.0011]
[1773425509707,2.67678932,2099.3,2098.5,1.3341]
[1773425509906,2.67678932,2099.3,2098.5,0.0011]
[1773425511315,2.84100197,2099.1,2098.5,0.0011]
[1773425511520,2.84100197,2099.1,2098.5,0.04875308]
[1773425512014,4.0318207,2099.4,2098.5,2.04256298]
[1773425512212,4.0318207,2099.4,2098.5,1.9949099]
[1773425513337,4.0318207,2099.4,2098.6,1.334]
[1773425513539,4.0318207,2099.4,2098.7,1.335]
[1773425514037,2.84100197,2099.5,2098.7,3.32325319]
[1773425515034,2.84100197,2099.5,2098.7,1.335]
[1773425515424,1.19081642,2099.4,2098.6,1.19127037]
[1773425515625,2.84100197,2099.3,2098.6,1.19127037]
[1773425515823,2.84100197,2099.3,2098.5,2.52740676]
[1773425516025,2.84100197,2099.3,2098.5,1.3361]
[1773425516333,2.84100197,2099.3,2098.5,0.0011]
[1773425516519,2.84100197,2099.3,2098.0,1.19161105]
[1773425516720,2.84100197,2099.3,2098.0,1.23927549]
[1773425517331,2.84100197,2099.3,2098.1,1.96717389]
[1773425517636,2.84100197,2099.1,2098.3,1.19144069]
[1773425517836,2.84100197,2099.1,2098.4,0.04765535]
[1773425519843,4.03204014,2099.1,2098.5,1.19132713]
[1773425520383,2.84100197,2099.1,2098.6,0.04765081]
[1773425520516,2.84100197,2099.1,2098.5,1.19132713]
[1773425520716,4.03199057,2099.1,2098.5,1.19132713]
[1773425521031,4.03186211,2099.4,2098.6,0.04765081]
[1773425521434,0.001,2099.2,2098.6,0.04765081]
[1773425521842,0.001,2099.2,2098.7,1.1912136]
[1773425523543,2.84200197,2099.2,2098.7,1.337]
[1773425523746,0.001,2099.2,2098.7,3.27072546]
[1773425524044,4.03136479,2100.2,2099.1,1.93372546]
[1773425524445,7.39828813,2100.6,2099.3,1.92897497]
[1773425524446,1.19027878,2100.4,2099.3,1.92897497]
[1773425524626,4.34355787,2100.5,2099.6,12.88390197]
[1773425524834,4.34355787,2100.5,2099.6,1.92897497]
[1773425525030,4.03123797,2100.5,2099.6,1.92897497]
[1773425526119,2.84100197,2100.4,2099.3,1.91787423]
[1773425526444,2.84100197,2100.4,2099.3,3.10874737]
[1773425526643,2.84100197,2100.4,2099.4,1.337]
[1773425526848,2.84100197,2100.4,2099.3,3.10874737]
[1773425527047,2.84100197,2100.4,2099.4,1.337]
[1773425528333,2.84100197,2100.2,2099.4,2.52778477]
[1773425528843,1.19026719,2100.4,2099.6,1.9067294]
[1773425530444,1.19023123,2100.5,2099.7,3.08623127]
[1773425531248,2.84100197,2100.4,2099.8,1.337]
[1773425531949,2.84100197,2100.4,2099.4,3.0808094]
[1773425532153,2.84100197,2100.4,2099.5,1.337]
[1773425532462,2.84100197,2100.2,2099.5,2.5277168]
[1773425533761,2.84200197,2100.2,2099.4,1.19081483]
[1773425535059,1.1904195,2100.1,2099.4,1.19081483]
[1773425535391,4.03240655,2100.2,2099.4,3.05486593]
[1773425535558,4.03240655,2100.2,2099.5,0.04763038]
[1773425535774,2.84100197,2100.1,2099.3,1.19192276]
[1773425535940,2.84100197,2100.1,2099.3,1.19196099]
[1773425537063,4.03147816,2100.0,2099.3,1.19196099]
[1773425537561,4.03147816,2100.0,2099.4,0.04763265]
[1773425537742,4.03147816,2100.0,2099.3,1.19196099]
[1773425538932,1.19046515,2100.1,2099.3,3.03381618]
[1773425539152,1.19136282,2100.2,2099.5,3.02525998]
[1773425539353,1.19136282,2100.2,2099.6,0.04762811]
[1773425540082,0.001,2100.2,2099.6,1.88212839]
[1773425540650,4.03118257,2100.6,2099.7,1.82616821]
[1773425540859,4.03118257,2100.6,2099.8,0.04762358]
[1773425541098,4.76006745,2101.0,2099.8,0.04762358]
[1773425541099,2.34167273,2101.2,2099.8,1.19055533]
[1773425541374,0.001,2102.0,2100.8,1.85972711]
[1773425541555,2.72200566,2101.9,2100.2,2.73133723]
[1773425541755,2.72200566,2101.9,2100.5,4.084]
[1773425541982,2.72200566,2101.9,2100.2,2.73133723]
[1773425542174,2.72200566,2101.3,2100.2,2.73133723]
[1773425542953,2.72200566,2101.3,2099.8,1.35266519]
[1773425542954,2.72200566,2101.0,2099.8,1.35266519]
[1773425543182,3.91197186,2100.9,2099.8,4.08400242]
[1773425543355,3.91197186,2100.9,2099.9,2.73133723]
[1773425543983,3.91197186,2100.9,2100.0,0.04761904]
[1773425544184,1.1899662,2100.9,2100.0,2.77895627]
[1773425545467,1.18985293,2101.1,2100.1,3.92175673]
[1773425546077,1.19085293,2101.1,2100.1,3.92175673]
[1773425546468,1.19085293,2101.1,2100.3,2.73133723]
[1773425547383,1.19085293,2101.1,2100.4,1.19024947]
[1773425547593,1.18951325,2101.7,2100.5,1.337]
[1773425547881,1.18951325,2101.7,2100.7,2.73133723]
[1773425548063,2.72200566,2101.6,2100.4,2.73133723]
[1773425548673,2.72200566,2101.4,2100.1,3.92172189]
[1773425548984,2.72200566,2101.1,2099.9,1.47783215]
[1773425549761,2.72200566,2100.7,2099.9,0.28730762]
[1773425550181,2.72200566,2100.7,2099.9,1.47783132]
[1773425550690,2.72200566,2100.7,2099.9,0.28730762]
[1773425551563,2.72200566,2100.5,2099.9,0.28730762]
[1773425551882,1.19024947,2100.4,2099.9,0.28730762]
[1773425553873,2.72636392,2100.4,2099.7,0.0011]
[1773425554486,2.72636392,2100.3,2099.7,0.0011]
[1773425555182,9.34685399,2100.6,2099.7,1.19174315]
[1773425555492,2.72636392,2100.5,2099.7,0.0011]
[1773425556199,2.72636392,2100.2,2099.7,0.0011]
[1773425558302,4.58609103,2099.9,2099.5,0.0011]
[1773425558514,1.1904195,2100.1,2099.5,0.0011]
[1773425558816,1.1904195,2100.1,2099.5,2.628625]
[1773425558986,1.1904195,2100.1,2099.6,0.0011]
[1773425559711,2.72636392,2100.0,2099.4,0.0011]
[1773425560206,2.9124195,2100.1,2099.4,2.628625]
[1773425560421,2.9124195,2100.1,2099.4,3.81943915]
[1773425560594,1.1904195,2100.1,2099.4,3.81943915]
[1773425560909,1.19140257,2100.2,2099.5,2.627525]
[1773425561096,1.19140257,2100.2,2099.5,2.67515538]
[1773425561282,1.19140257,2100.2,2099.5,2.627525]
[1773425561474,2.72636392,2099.9,2099.1,1.19098652]
[1773425561683,2.72636392,2099.9,2099.0,3.81962881]
[1773425562192,1.19058957,2099.8,2099.2,1.19092987]
[1773425562517,1.19058957,2099.8,2099.2,3.81845487]
[1773425563114,1.19058957,2099.8,2099.2,2.627525]
[1773425564104,0.23450525,2100.2,2099.4,2.627525]
[1773425564105,0.001,2100.2,2099.4,2.627525]
[1773425564291,0.001,2100.2,2099.7,2.627525]
[1773425564492,0.001,2100.2,2099.8,2.627525]
[1773425565715,1.18990956,2101.0,2099.8,2.64425303]
[1773425566014,1.18990956,2101.0,2099.9,28.330475]
[1773425566206,9.20777588,2101.1,2100.2,2.64425303]
[1773425566207,1.18989425,2101.1,2100.2,2.64425303]
[1773425566421,1.47713677,2101.2,2100.2,2.64425303]
[1773425566585,1.47710905,2101.2,2100.3,2.64425303]
[1773425566790,0.2873076,2101.2,2100.3,2.64425303]
[1773425567209,0.2873076,2101.2,2100.4,3.597938]
[1773425567385,1.18970992,2101.4,2100.5,2.64425303]
[1773425567386,1.18974122,2101.3,2100.5,2.64425303]
[1773425568414,0.065536,2101.9,2100.7,2.64425303]
[1773425568717,1.18940006,2101.9,2100.7,2.64425303]
[1773425568911,1.18940006,2101.9,2100.9,2.64425303]
[1773425569713,0.001,2102.2,2101.7,2.64425303]
[1773425569913,0.001,2102.7,2101.9,2.64425303]
[1773425570195,1.18995349,2102.7,2101.9,2.64425303]
[1773425570400,0.001,2102.7,2102.0,3.83359651]
[1773425570719,0.001,2102.7,2101.7,2.64425303]
[1773425571791,0.001,2102.7,2102.0,6.279814]
[1773425571991,0.001,2102.7,2102.1,2.8062959]
[1773425572219,1.18860837,2103.3,2102.2,2.8062959]
[1773425572515,1.18860837,2103.3,2102.4,2.8062959]
[1773425572695,0.001,2103.5,2102.5,2.8062959]
[1773425573896,2.71588812,2103.4,2102.5,2.8062959]
[1773425574722,1.18860837,2103.3,2102.2,4.1392959]
[1773425575030,2.71588812,2103.2,2102.2,2.8062959]
[1773425575895,2.71588812,2103.1,2101.9,2.8062959]
[1773425576608,2.71588812,2102.9,2101.9,2.8062959]
[1773425577741,1.18877793,2103.0,2101.9,1.1893873]
[1773425578028,1.18877793,2103.0,2102.1,2.8062959]
[1773425578726,4.75511174,2103.2,2102.2,3.99552623]
[1773425579203,2.71588812,2103.1,2102.2,2.8062959]
[1773425580496,2.71588812,2103.1,2101.9,2.8062959]
[1773425580622,2.71588812,2103.0,2101.9,2.8062959]
[1773425580923,1.18883446,2102.9,2102.0,2.8062959]
[1773425581137,2.71588812,2102.8,2101.5,2.8062959]
[1773425581347,2.71588812,2102.8,2101.7,2.8062959]
[1773425581649,2.71588812,2102.7,2101.3,2.8062959]
[1773425583012,2.71588812,2102.7,2101.5,2.8062959]
[1773425583013,1.18900409,2102.6,2101.5,2.8062959]
[1773425583217,1.18877793,2103.0,2101.5,2.8062959]
[1773425584124,0.001,2102.8,2101.5,2.8062959]
[1773425584537,0.001,2102.8,2101.6,2.8062959]
[1773425585243,0.001,2102.8,2101.8,2.8062959]
[1773425585460,0.001,2102.8,2101.9,2.8062959]
[1773425585657,0.001,2102.8,2101.9,2.8538719]
[1773425586556,0.001,2102.8,2102.2,2.8062959]
[1773425587055,0.001,2102.8,2101.7,1.33899824]
[1773425587056,0.001,2102.8,2101.9,4.1362959]
[1773425587349,0.001,2102.8,2102.0,3.99563938]
[1773425587747,0.001,2102.8,2102.0,2.8062959]
[1773425588031,0.001,2103.5,2102.0,2.8062959]
[1773425588172,1.18949932,2103.5,2102.7,2.8062959]
[1773425588469,1.18949932,2103.5,2102.2,2.8062959]
[1773425588470,2.71588812,2103.4,2102.2,2.8062959]
[1773425588660,2.71588812,2103.4,2102.3,2.8062959]
[1773425589041,2.71588812,2103.4,2102.1,2.91059799]
[1773425589449,2.71588812,2103.2,2102.1,4.09985577]
[1773425589688,2.71588812,2103.2,2102.1,4.09985216]
[1773425590559,2.71588812,2103.2,2102.1,1.41403311]
[1773425590759,2.71588812,2103.2,2102.1,0.22477894]
[1773425591352,3.90460953,2103.1,2102.1,1.41405549]
[1773425591553,3.90460953,2103.1,2102.2,0.04756921]
[1773425592288,3.90460953,2103.1,2102.1,1.41405549]
[1773425592469,0.001,2103.5,2102.6,2.8062959]
[1773425592960,0.001,2103.5,2102.7,2.8062959]
[1773425593382,0.001,2103.5,2102.8,3.9951869]
[1773425594173,0.001,2103.5,2102.8,2.8062959]
[1773425596793,0.001,2103.5,2102.4,3.99537009]
[1773425597198,0.001,2103.3,2102.5,2.8062959]
[1773425597363,0.001,2103.3,2102.6,0.04756016]
[1773425597890,2.71688812,2103.3,2102.3,1.18917376]
[1773425598093,0.001,2103.3,2102.5,4.66179614]
[1773425598265,0.001,2103.3,2102.6,2.8062959]
[1773425598662,0.001,2103.3,2102.7,1.18894754]
[1773425599176,0.001,2103.3,2102.7,3.99524344]
[1773425599398,0.001,2103.3,2102.8,2.8062959]
[1773425601098,0.001,2103.3,2102.8,3.99518176]
[1773425601299,0.001,2103.3,2102.6,1.18896086]
[1773425601485,0.001,2103.3,2102.5,3.82226091]
[1773425601682,2.6999823,2104.5,2103.2,2.63321643]
[1773425603026,1.18798707,2104.4,2103.4,2.63321643]
[1773425603597,3.88796937,2104.4,2103.4,2.63321643]
[1773425603766,2.6999823,2104.3,2103.4,2.63321643]
[1773425603967,2.6999823,2104.3,2103.3,2.63321643]
[1773425604391,1.18798707,2104.4,2103.3,2.63321643]
[1773425604790,3.88796937,2104.4,2103.3,2.63321643]
[1773425604968,3.88796937,2104.4,2103.4,1.18855186]
[1773425605169,5.58996937,2104.4,2103.4,3.82176829]
[1773425605478,2.6999823,2104.3,2103.4,3.82176829]
[1773425606874,2.6999823,2104.3,2103.3,1.18857803]
[1773425607074,3.88808229,2104.2,2103.3,0.04754433]
[1773425607380,1.18809999,2104.2,2103.4,2.63321643]
[1773425607784,1.18809999,2104.2,2103.2,4.75461071]
[1773425607785,2.6999823,2104.1,2103.2,1.18866489]
[1773425608102,2.6999823,2104.1,2102.6,2.63321643]
[1773425608311,2.6999823,2104.1,2102.7,2.63321643]
[1773425608974,2.6999823,2103.9,2102.8,1.188891]
[1773425609181,2.6999823,2103.8,2102.9,2.63321643]
[1773425609609,2.6999823,2103.8,2103.0,0.0011]
[1773425611404,1.18838237,2103.7,2103.0,0.0011]
[1773425612703,2.89638237,2103.7,2103.0,0.0011]
[1773425614113,5.59636467,2103.7,2103.0,0.0011]
[1773425615801,5.59636467,2103.7,2102.8,0.0011]
[1773425615802,2.6999823,2103.6,2102.8,0.0011]
[1773425615998,2.6999823,2103.6,2102.8,2.63431643]
[1773425616345,2.6999823,2103.6,2102.9,2.63321643]
[1773425616505,2.6999823,2103.6,2102.8,0.0011]
[1773425617611,1.711,2103.5,2102.8,0.0011]
[1773425617795,3.88853416,2103.4,2102.8,0.0011]
[1773425617996,2.6999823,2103.3,2102.5,0.0011]
[1773425619823,1.18866489,2103.2,2102.5,0.0011]
[1773425620025,1.712,2103.1,2102.5,2.63431643]
[1773425620411,4.4119823,2103.1,2102.5,0.0011]
[1773425621502,1.18866489,2103.2,2102.5,2.63431643]
[1773425621715,2.90161294,2103.3,2102.5,2.63431643]
[1773425621932,2.90161294,2103.3,2102.6,2.63321643]
[1773425622734,2.90161294,2103.3,2102.7,0.0011]
[1773425622946,1.18849536,2103.5,2102.7,2.63431643]
[1773425623607,1.18947491,2103.6,2102.7,2.63431643]
[1773425623832,0.001,2103.6,2102.7,2.63431643]
[1773425624012,0.001,2103.6,2102.9,2.63321643]
[1773425625208,2.7009823,2103.6,2102.9,2.63321643]
[1773425625561,2.7009823,2103.6,2102.7,1.19004612]
[1773425625728,2.7009823,2103.6,2102.7,0.0011]
[1773425626210,1.18849536,2103.5,2102.7,0.0011]
[1773425626538,1.715,2103.4,2102.7,2.45690278]
[1773425627241,4.31027685,2103.4,2102.7,2.45690278]
[1773425628107,1.18860837,2103.3,2102.7,2.45690278]
[1773425628307,4.75415731,2103.5,2102.8,2.45580278]
[1773425628538,1.18945355,2103.6,2102.8,2.45580278]
[1773425628704,0.001,2103.6,2102.8,2.45580278]
[1773425629037,1.18946086,2103.6,2102.8,2.45580278]
[1773425630237,1.18946086,2103.6,2102.8,3.64465192]
[1773425634232,1.18946086,2103.6,2102.8,1.18884914]
[1773425634437,1.18946086,2103.6,2102.9,2.66745298]
[1773425634609,1.18946086,2103.6,2103.0,2.71500409]
[1773425635810,1.18946086,2103.6,2103.0,2.71610409]
[1773425636113,0.001,2103.4,2103.0,2.71610409]
[1773425636934,1.18946086,2103.6,2103.1,2.66745298]
[1773425636935,0.001,2103.6,2103.1,2.66745298]
[1773425637738,0.001,2103.6,2103.2,2.66745298]
[1773425638438,0.001,2103.6,2103.2,2.71499957]
[1773425638736,0.001,2103.6,2103.2,2.66745298]
[1773425640146,0.001,2103.6,2103.0,1.23739204]
[1773425640349,0.001,2103.6,2103.1,2.66745298]
[1773425640638,1.18920093,2104.1,2103.4,2.66745298]
[1773425641005,3.64652788,2104.1,2103.4,2.66745298]
[1773425641909,3.64523444,2104.6,2103.8,2.66745298]
[1773425642111,3.64531402,2104.4,2103.2,2.66745298]
[1773425642310,2.45732695,2104.3,2103.3,2.66745298]
[1773425642709,4.75194829,2104.6,2103.8,2.66745298]
[1773425642710,2.45732695,2104.6,2103.8,2.66745298]
[1773425643115,2.45732695,2104.6,2103.2,1.327]
[1773425643435,4.17432695,2104.5,2103.3,2.71499731]
[1773425644137,2.45732695,2104.5,2103.3,2.71499731]
[1773425644439,2.45732695,2104.5,2103.5,2.66745298]
[1773425644440,1.18798707,2104.4,2103.5,2.66745298]
[1773425644640,4.75174394,2104.6,2103.5,2.66745298]
[1773425644641,2.90487418,2104.6,2103.5,2.66745298]
[1773425644844,1.18787418,2104.6,2103.5,2.66745298]
[1773425647243,4.75249672,2104.7,2103.5,2.66745298]
[1773425647416,7.20982367,2104.7,2103.7,2.66745298]
[1773425647918,5.36414469,2104.7,2103.7,2.66745298]
[1773425649330,5.36414469,2104.7,2103.8,1.18832588]
[1773425649530,3.64614469,2104.7,2103.9,2.66745298]
[1773425649935,2.45732695,2104.6,2103.9,2.66745298]
[1773425650139,2.45732695,2104.6,2103.7,3.85580918]
[1773425650320,2.45732695,2104.6,2103.8,0.04753303]
[1773425650843,2.45732695,2104.6,2103.5,3.85591937]
[1773425651049,2.45732695,2104.6,2103.7,0.0011]
[1773425651431,2.45732695,2104.4,2103.7,0.0011]
[1773425651953,2.45732695,2104.4,2103.7,2.66855298]
[1773425652652,2.45732695,2104.4,2103.5,0.0011]
[1773425653217,2.45732695,2104.2,2103.5,0.0011]
[1773425653535,2.45732695,2104.0,2103.5,0.0011]
[1773425655826,1.1882694,2103.9,2103.5,0.0011]
[1773425657350,2.45732695,2103.8,2103.0,2.66855298]
[1773425657650,2.45732695,2103.8,2103.0,3.85732869]
[1773425657823,1.18838237,2103.7,2103.0,3.85732869]
[1773425658028,4.75352949,2103.8,2103.1,2.71500183]
[1773425658029,2.90832588,2103.8,2103.1,2.71500183]
[1773425658241,7.21055255,2103.9,2103.1,2.71500183]
[1773425658242,3.64564013,2103.9,2103.1,2.71500183]
[1773425658420,6.84242724,2104.4,2103.1,2.71500183]
[1773425658421,2.45732695,2104.1,2103.1,2.71500183]
[1773425658625,1.72,2104.2,2103.1,2.71500183]
[1773425660027,1.72,2104.2,2103.3,2.66745298]
[1773425660028,1.18815645,2104.1,2103.3,2.66745298]
[1773425660542,3.6454834,2104.1,2103.3,2.66745298]
[1773425661644,2.43815037,2104.0,2103.3,2.66745298]
[1773425662350,2.43815037,2104.0,2103.2,1.18866489]
[1773425662351,1.1882694,2103.9,2103.4,2.47949989]
[1773425662537,1.1882694,2103.9,2103.4,2.43195782]
[1773425662737,1.1882694,2103.9,2103.5,0.04753981]
[1773425663355,1.1882694,2103.9,2103.4,3.62050301]
[1773425663821,3.62641977,2103.9,2103.2,1.18861824]
[1773425664155,3.62641977,2103.9,2103.2,3.62057606]
[1773425664544,3.62641977,2103.9,2103.3,3.62056619]
[1773425665127,3.62641977,2103.9,2103.7,0.0011]
[1773425670066,1.1882694,2103.9,2103.7,0.0011]
[1773425670633,0.001,2104.2,2103.5,2.43305782]
[1773425670831,2.43815037,2104.6,2103.8,2.43195782]
[1773425670832,1.18787748,2104.6,2103.8,2.43195782]
[1773425671027,0.001,2104.7,2104.0,2.43195782]
[1773425671253,0.001,2104.7,2104.1,2.43195782]
[1773425672463,4.94743881,2105.3,2104.3,2.43195782]
[1773425672669,1.38481968,2105.3,2104.3,2.43195782]
[1773425672971,1.38481968,2105.3,2104.6,2.43195782]
[1773425673967,1.18752337,2105.3,2104.6,2.43195782]
[1773425674537,2.43815037,2105.2,2104.4,2.43195782]
[1773425674736,2.43815037,2105.1,2104.4,2.43195782]
[1773425675043,3.62579882,2105.0,2104.1,5.11477932]
[1773425675357,3.62579882,2105.0,2104.2,2.43195782]
[1773425675663,2.43815037,2104.9,2104.2,2.43195782]
[1773425675846,4.14815037,2104.9,2104.2,2.43195782]
[1773425676249,2.43815037,2104.9,2104.2,2.43195782]
[1773425676567,2.43815037,2104.9,2104.0,2.43195782]
[1773425677136,1.1877613,2104.8,2104.0,2.43195782]
[1773425677340,3.62591167,2104.8,2104.0,2.43195782]
[1773425678341,2.43815037,2104.7,2103.8,2.43195782]
[1773425678862,1.1877613,2104.8,2103.8,2.43195782]
[1773425679241,1.1877613,2104.8,2104.0,2.43195782]
[1773425679453,3.62591167,2104.8,2104.0,2.43195782]
[1773425680160,1.1877613,2104.8,2104.0,2.43195782]
[1773425681767,8.90452693,2105.1,2104.2,2.43195782]
[1773425681958,4.75137656,2105.1,2104.3,2.47947956]
[1773425682142,1.18859203,2105.1,2104.3,2.43195782]
[1773425684645,2.43915037,2105.1,2104.5,2.43195782]
[1773425684856,2.43915037,2105.1,2104.3,3.61999433]
[1773425685162,2.43915037,2105.1,2104.4,2.31342882]
[1773425685364,0.001,2105.1,2104.4,2.31342882]
[1773425686651,2.42564831,2105.1,2104.4,2.31342882]
[1773425687151,2.42564831,2105.1,2104.2,2.31342882]
[1773425687347,2.42564831,2105.1,2104.3,0.04752174]
[1773425687552,2.42564831,2105.1,2104.3,2.36095056]
[1773425688354,1.72,2105.0,2104.3,2.36095056]
[1773425688842,1.18770487,2104.9,2104.3,2.36095056]
[1773425689144,1.18770487,2104.9,2104.4,2.31342882]
[1773425690454,1.18770487,2104.9,2104.6,0.0011]
[1773425691042,4.75081951,2105.0,2104.6,0.0011]
[1773425692076,2.52039341,2104.9,2104.6,0.0011]
[1773425692974,2.52039341,2104.9,2104.4,0.04861948]
[1773425693276,1.1877613,2104.8,2104.4,0.0011]
[1773425693458,2.52039341,2104.7,2104.1,0.0011]
[1773425693659,2.52039341,2104.7,2104.1,2.31967605]
[1773425695978,1.18787418,2104.6,2104.1,2.31967605]
[1773425697963,1.18787418,2104.6,2104.2,2.36610004]
[1773425699087,1.23539832,2104.6,2104.1,2.31967605]
[1773425699378,1.23539832,2104.6,2104.2,2.36610004]
[1773425700257,1.18785066,2104.7,2104.2,2.31857605]
[1773425700611,2.56791755,2104.6,2104.1,0.0011]
[1773425700949,2.56791755,2104.6,2104.1,2.31967605]
[1773425701155,0.04752414,2104.6,2104.2,2.36610004]
[1773425701356,0.04752414,2104.6,2104.2,2.31857605]
[1773425701770,0.04752414,2104.7,2104.2,2.31857605]
[1773425702460,1.23534274,2104.7,2104.3,3.50661957]
[1773425702660,0.04752414,2104.7,2104.3,3.50771957]
[1773425702876,0.04752414,2104.7,2104.4,2.31857605]
[1773425703070,1e-08,2104.7,2104.4,2.31857605]
[1773425703270,1.18784028,2104.7,2104.3,0.0011]
[1773425703484,3.70823369,2104.7,2104.3,0.0011]
[1773425703883,2.52039341,2104.6,2104.3,0.0011]
[1773425704361,2.52039341,2104.4,2104.1,0.0011]
[1773425704762,2.52039341,2104.4,2103.8,0.0011]
[1773425704763,2.52039341,2104.3,2103.8,0.0011]
[1773425706473,1.18809999,2104.2,2103.8,0.0011]
[1773425706785,4.75172249,2104.6,2103.8,2.31967605]
[1773425706786,1.18793062,2104.5,2103.8,2.31967605]
[1773425707290,2.52039341,2104.5,2103.8,2.31967605]
[1773425707908,2.52039341,2104.5,2103.8,0.0011]
[1773425708694,2.52039341,2104.3,2103.8,0.0011]
[1773425709368,4.25039341,2104.3,2103.8,0.0011]
[1773425709904,2.52039341,2104.2,2103.8,0.0011]